bitfinex-derivatives/quotes_BNBF0:USTF0_20250112
["timestamp","ask_amount","ask_price","bid_price","bid_amount"]
[1736705679717,1.07579112,696.61,695.58,1.7308721]
[1736705680725,1.07579112,696.6,695.58,1.7308721]
[1736705681321,1.07579112,696.6,695.55,0.28754223]
[1736705681924,1.07579112,696.61,695.55,0.28754223]
[1736705685328,1.07579112,696.66,695.55,0.28754223]
[1736705687032,1.07579112,696.67,695.55,0.28754223]
[1736705690534,1.07579112,696.66,695.55,0.28754223]
[1736705694332,0.28705524,696.73,695.55,0.28754223]
[1736705694333,1.07579112,696.6,695.55,0.28754223]
[1736705695436,1.07579112,696.59,695.55,0.28754223]
[1736705696041,1.07579112,696.6,695.55,0.28754223]
[1736705697844,1.07579112,696.61,695.55,0.28754223]
[1736705698736,1.07579112,696.6,695.55,0.28754223]
[1736705699842,1.07579112,696.61,695.55,0.28754223]
[1736705700943,1.07579112,696.6,695.55,0.28754223]
[1736705701939,1.07579112,696.59,695.55,0.28754223]
[1736705703444,1.07579112,696.64,695.55,0.28754223]
[1736705704349,1.07579112,696.71,695.55,0.28754223]
[1736705705246,1.07579112,696.7,695.55,0.28754223]
[1736705709746,1.07579112,696.69,695.55,0.28754223]
[1736705710944,1.07579112,696.71,695.55,0.28754223]
[1736705711949,1.07579112,696.72,695.55,0.28754223]
[1736705713949,1.07579112,696.63,695.55,0.28754223]
[1736705715755,1.07579112,696.69,695.55,0.28754223]
[1736705716952,0.28705524,696.73,695.55,0.28754223]
[1736705721861,0.28705524,696.73,695.55,2.0203069]
[1736705723761,0.28705524,696.73,695.55,0.28754223]
[1736705750574,0.28705524,696.73,695.56,1.28144192]
[1736705750974,0.28705524,696.73,695.56,4.10495138]
[1736705751171,0.28705524,696.73,695.57,1.09074479]
[1736705751477,0.28705524,696.73,695.6,1.28144192]
[1736705752480,0.28705524,696.73,695.64,1.28144192]
[1736705753378,0.28705524,696.73,695.65,1.28144192]
[1736705754378,0.28705524,696.73,695.66,1.28144192]
[1736705755473,0.28705524,696.73,695.65,1.28144192]
[1736705756277,0.28705524,696.73,695.65,2.37218671]
[1736705757076,0.28705524,696.73,695.65,1.09074479]
[1736705757278,0.28705524,696.73,695.64,2.82350946]
[1736705757477,0.28705524,696.73,695.65,2.9766528]
[1736705757677,0.28705524,696.73,695.66,2.82350946]
[1736705758679,0.28705524,696.73,695.67,2.9766528]
[1736705758883,0.28705524,696.73,695.68,2.82350946]
[1736705759278,0.28705524,696.73,695.67,2.9766528]
[1736705760887,0.28705524,696.73,695.47,1.28144192]
[1736705761388,0.28705524,696.73,695.44,1.28144192]
[1736705762188,0.28705524,696.73,695.43,1.28144192]
[1736705762387,0.28705524,696.73,695.43,4.09981056]
[1736705762584,0.28705524,696.73,695.44,2.81836864]
[1736705763490,0.28705524,696.73,695.45,5.79502144]
[1736705763690,0.28705524,696.73,695.46,2.81836864]
[1736705763891,0.28705524,696.73,695.46,1.72787728]
[1736705764092,0.28705524,696.73,695.47,1.28144192]
[1736705765089,0.28705524,696.73,695.47,4.25809472]
[1736705765286,0.28705524,696.73,695.48,1.72787728]
[1736705766088,0.28705524,696.73,695.48,1.7284674]
[1736705766996,0.28705524,696.73,695.36,2.81951793]
[1736705768491,0.28705524,696.73,695.37,2.9766528]
[1736705768691,0.28705524,696.73,695.38,2.81951793]
[1736705769797,0.28705524,696.73,695.39,2.9766528]
[1736705769997,0.28705524,696.73,695.4,2.81951793]
[1736705770399,0.28705524,696.73,695.4,1.7284674]
[1736705771803,0.28705524,696.73,695.27,2.82026572]
[1736705772504,0.28705524,696.73,695.27,4.10170764]
[1736705772699,0.28705524,696.73,695.28,2.82026572]
[1736705773505,0.28705524,696.73,695.29,2.9766528]
[1736705773705,0.28705524,696.73,695.3,2.82026572]
[1736705774803,0.28705524,696.73,695.34,1.28144192]
[1736705775401,0.28705524,696.73,695.36,1.28144192]
[1736705776005,0.28705524,696.73,695.36,4.10170764]
[1736705776303,0.28705524,696.73,695.37,4.10170764]
[1736705776509,0.28705524,696.73,695.38,2.82026572]
[1736705776902,0.28705524,696.73,695.39,2.9766528]
[1736705777104,0.28705524,696.73,695.5,1.28144192]
[1736705778506,0.28705524,696.73,695.52,1.28144192]
[1736705779307,0.28705524,696.73,695.53,1.28144192]
[1736705779704,0.28705524,696.73,695.53,4.10228743]
[1736705780009,0.28705524,696.73,695.54,1.7284674]
[1736705780309,0.28705524,696.73,695.52,2.82090207]
[1736705780502,0.28705524,696.73,695.53,1.09243467]
[1736705780704,0.28705524,696.73,695.53,2.9766528]
[1736705780907,0.28705524,696.73,695.54,2.82090207]
[1736705781308,0.28705524,696.73,695.54,1.7284674]
[1736705781506,0.28705524,696.73,695.54,2.82093259]
[1736705782707,0.28705524,696.73,695.55,3.26419503]
[1736705782911,0.28705524,696.73,695.56,1.7284674]
[1736705784609,0.28705524,696.73,695.55,0.28754223]
[1736705795122,0.28705524,696.73,695.55,3.26419503]
[1736705795316,0.28705524,696.73,695.56,2.82089994]
[1736705796618,0.28705524,696.73,695.57,2.9766528]
[1736705796819,0.28705524,696.73,695.58,2.82089994]
[1736705798419,0.28705524,696.73,695.59,2.9766528]
[1736705798719,0.28705524,696.73,695.6,2.82089994]
[1736705800019,0.28705524,696.73,695.61,4.25809472]
[1736705800220,0.28705524,696.73,695.62,2.82089994]
[1736705800421,0.28705524,696.73,695.63,0.28750916]
[1736705801120,0.28705524,696.73,695.65,1.28144192]
[1736705801820,0.28705524,696.73,695.65,2.37387446]
[1736705802020,0.28705524,696.73,695.65,4.06908534]
[1736705802221,0.28705524,696.73,695.66,2.82089994]
[1736705803821,0.28705524,696.73,695.67,2.9766528]
[1736705804021,0.28705524,696.73,695.68,2.82089994]
[1736705805326,0.28705524,696.73,695.69,2.9766528]
[1736705805526,0.28705524,696.73,695.7,2.82089994]
[1736705806826,0.28705524,696.73,695.71,2.9766528]
[1736705807026,0.28705524,696.73,695.72,2.82089994]
[1736705808728,0.28705524,696.73,695.73,2.9766528]
[1736705808927,0.28705524,696.73,695.74,2.82089994]
[1736705809826,0.28705524,696.73,695.75,2.9766528]
[1736705810030,0.28705524,696.73,695.76,2.82089994]
[1736705810432,0.28705524,696.73,695.76,1.7284674]
[1736705811331,0.28705524,696.73,695.63,0.28750916]
[1736705814433,0.28705524,696.73,695.63,3.26416196]
[1736705814734,0.28705524,696.73,695.64,2.81973641]
[1736705815836,0.28705524,696.73,695.65,2.9766528]
[1736705816133,0.28705524,696.73,695.66,2.81973641]
[1736705816729,0.28705524,696.73,695.67,2.9766528]
[1736705816929,0.28705524,696.73,695.68,2.81973641]
[1736705818733,0.28705524,696.73,695.69,2.9766528]
[1736705818935,0.28705524,696.73,695.7,2.81973641]
[1736705819835,0.28705524,696.73,695.71,2.9766528]
[1736705820035,0.28705524,696.73,695.72,2.81973641]
[1736705822337,0.28705524,696.73,695.73,2.9766528]
[1736705822534,0.28705524,696.73,695.74,2.81973641]
[1736705823136,0.28705524,696.73,695.74,1.7284674]
[1736705823333,0.28705524,696.73,695.73,2.9766528]
[1736705824233,0.28705524,696.73,695.63,0.28750916]
[1736705837245,1.07579112,696.71,695.63,0.28750916]
[1736705838151,0.28705524,696.73,695.63,0.28750916]
[1736705838152,1.07579112,696.7,695.63,0.28750916]
[1736705839151,1.36284636,696.73,695.63,0.28750916]
[1736705840254,0.28705524,696.73,695.63,0.28750916]
[1736705858065,0.26395745,696.72,695.63,0.28750916]
[1736705860765,0.26396875,696.71,695.63,0.28750916]
[1736705860968,0.28705524,696.73,695.63,0.28750916]
[1736705861264,0.26396189,696.72,695.63,0.28750916]
[1736705861570,0.26396189,696.71,695.63,0.28750916]
[1736705861767,0.28705524,696.73,695.63,0.28750916]
[1736705861967,0.2639619,696.72,695.63,0.28750916]
[1736705862364,0.28705524,696.73,695.63,0.28750916]
[1736705868477,1.36284636,696.73,695.63,0.28750916]
[1736705869177,1.07579112,696.7,695.63,0.28750916]
[1736705869980,1.07579112,696.68,695.63,0.28750916]
[1736705871079,1.07579112,696.66,695.63,0.28750916]
[1736705871876,1.07579112,696.67,695.63,0.28750916]
[1736705873578,1.07579112,696.66,695.63,0.28750916]
[1736705876482,1.07579112,696.67,695.63,0.28750916]
[1736705877184,1.07579112,696.66,695.63,0.28750916]
[1736705881785,0.28705524,696.73,695.63,0.28750916]
[1736705881786,1.07579112,696.65,695.63,0.28750916]
[1736705883385,1.07579112,696.66,695.63,0.28750916]
[1736705888489,1.07579112,696.63,695.63,0.28750916]
[1736705889289,1.07579112,696.65,695.63,0.28750916]
[1736705891390,0.28705524,696.73,695.63,0.28750916]
[1736705891391,1.07579112,696.66,695.63,0.28750916]
[1736705892086,1.07579112,696.65,695.63,0.28750916]
[1736705893691,1.07579112,696.69,695.63,0.28750916]
[1736705894792,1.07579112,696.67,695.63,0.28750916]
[1736705896991,1.07579112,696.66,695.63,0.28750916]
[1736705897999,1.07579112,696.64,695.63,0.28750916]
[1736705898999,1.07579112,696.7,695.63,0.28750916]
[1736705899798,0.28705524,696.73,695.63,0.28750916]
[1736705901498,1.07579112,696.72,695.63,0.28750916]
[1736705902292,1.07579112,696.71,695.63,0.28750916]
[1736705903100,1.07579112,696.67,695.63,0.28750916]
[1736705905001,1.07579112,696.65,695.63,0.28750916]
[1736705907601,0.28705524,696.73,695.63,0.28750916]
[1736705907602,1.07579112,696.64,695.63,0.28750916]
[1736705908494,1.07579112,696.65,695.63,0.28750916]
[1736705909402,1.07579112,696.63,695.63,0.28750916]
[1736705911199,0.28705524,696.73,695.63,0.28750916]
[1736705911200,1.07579112,696.64,695.63,0.28750916]
[1736705914000,1.07579112,696.63,695.63,0.28750916]
[1736705914902,1.07579112,696.62,695.63,0.28750916]
[1736705915805,1.07579112,696.63,695.63,0.28750916]
[1736705917702,1.07579112,696.64,695.63,0.28750916]
[1736705921110,1.07579112,696.65,695.63,0.28750916]
[1736705922412,1.07579112,696.64,695.63,0.28750916]
[1736705923612,1.07579112,696.63,695.63,0.28750916]
[1736705925914,1.07579112,696.64,695.63,0.28750916]
[1736705926813,1.07579112,696.63,695.63,0.28750916]
[1736705928011,1.07579112,696.58,695.63,0.28750916]
[1736705929015,1.07579112,696.65,695.63,0.28750916]
[1736705929918,1.07579112,696.67,695.63,0.28750916]
[1736705931021,0.28705524,696.73,695.63,0.28750916]
[1736705931022,1.07579112,696.68,695.63,0.28750916]
[1736705933822,1.07579112,696.69,695.63,0.28750916]
[1736705935026,1.07579112,696.67,695.63,0.28750916]
[1736705937422,1.07579112,696.66,695.63,0.28750916]
[1736705937928,0.26399755,696.65,695.63,0.28750916]
[1736705938323,1.33978867,696.65,695.63,0.28750916]
[1736705938525,0.26399755,696.64,695.63,0.28750916]
[1736705939230,1.07579112,696.58,695.63,0.28750916]
[1736705940429,1.07579112,696.59,695.63,0.28750916]
[1736705942532,1.07579112,696.58,695.63,0.28750916]
[1736705944730,1.07579112,696.61,695.63,0.28750916]
[1736705945532,1.07579112,696.63,695.63,0.28750916]
[1736705947438,0.28705524,696.73,695.63,0.28750916]
[1736705947439,1.07579112,696.64,695.63,0.28750916]
[1736705948739,1.07579112,696.63,695.63,0.28750916]
[1736705949334,1.07579112,696.7,695.63,0.28750916]
[1736705950535,0.28705524,696.73,695.63,0.28750916]
[1736705950536,1.07579112,696.69,695.63,0.28750916]
[1736705951641,0.28705524,696.73,695.63,0.28750916]
[1736705951642,1.07579112,696.68,695.63,0.28750916]
[1736705952744,1.07579112,696.67,695.63,0.28750916]
[1736705955443,1.07579112,696.65,695.63,0.28750916]
[1736705958245,1.07579112,696.64,695.63,0.28750916]
[1736705958746,0.26399283,696.63,695.63,0.28750916]
[1736705959140,1.07579112,696.63,695.63,0.28750916]
[1736705960045,1.07579112,696.55,695.63,0.28750916]
[1736705961845,1.07579112,696.54,695.63,0.28750916]
[1736705964340,1.07579112,696.49,695.63,0.28750916]
[1736705966249,1.07579112,696.5,695.63,0.28750916]
[1736705967246,1.07579112,696.48,695.3,2.81840754]
[1736705968349,1.07579112,696.45,695.3,2.81840754]
[1736705968850,1.07579112,696.45,695.31,2.97896713]
[1736705969150,1.07579112,696.45,695.32,2.81840754]
[1736705969545,1.07579112,696.46,695.32,2.81840754]
[1736705970151,1.07579112,696.46,695.33,2.97896713]
[1736705970354,1.07579112,696.48,695.34,2.81840754]
[1736705971145,1.07579112,696.49,695.34,2.81840754]
[1736705971949,1.07579112,696.49,695.35,2.97896713]
[1736705972150,1.07579112,696.49,695.36,2.81840754]
[1736705973152,0.28705524,696.73,695.36,2.81840754]
[1736705973153,1.07579112,696.52,695.36,2.81840754]
[1736705973547,1.07579112,696.52,695.37,2.97896713]
[1736705973751,1.07579112,696.52,695.38,1.72731549]
[1736705974948,1.07579112,696.53,695.38,1.72731549]
[1736705975554,1.07579112,696.53,695.18,2.81762504]
[1736705975754,1.07579112,696.53,695.19,0.28769113]
[1736705976655,1.07579112,696.53,695.19,3.26665826]
[1736705976850,1.07579112,696.53,695.2,2.81762504]
[1736705977055,1.07579112,696.53,695.21,0.28768285]
[1736705978455,1.07579112,696.53,695.21,3.26664998]
[1736705978656,1.07579112,696.53,695.22,2.81762504]
[1736705978857,1.07579112,696.54,695.23,0.28767458]
[1736705979957,1.07579112,696.54,695.23,3.26664171]
[1736705980158,1.07579112,696.54,695.24,2.81762504]
[1736705980359,1.07579112,696.54,695.25,0.2876663]
[1736705980560,1.07579112,696.53,695.25,0.2876663]
[1736705981259,1.07579112,696.57,695.25,0.2876663]
[1736705981555,0.26401593,696.56,695.25,3.26663343]
[1736705981759,0.26401593,696.56,695.26,2.81762504]
[1736705981952,1.07579112,696.57,695.27,0.28765803]
[1736705982156,1.07579112,696.58,695.27,0.28765803]
[1736705982759,1.07579112,696.58,695.27,3.26662516]
[1736705983058,1.07579112,696.58,695.28,2.81762504]
[1736705983253,1.07579112,696.65,695.28,4.09906696]
[1736705983458,1.07579112,696.65,695.29,1.09030955]
[1736705983853,1.07579112,696.65,695.3,0.28764562]
[1736705984253,1.07579112,696.69,695.32,1.28144192]
[1736705984553,0.26397616,696.68,695.33,0.28763321]
[1736705984957,0.26397768,696.67,695.33,3.10525825]
[1736705985159,1.07579112,696.68,695.33,3.10525825]
[1736705985353,0.26397706,696.67,695.33,0.28763321]
[1736705985554,1.07579112,696.68,695.33,0.28763321]
[1736705985753,0.26397433,696.67,695.34,2.97896713]
[1736705986054,1.07579112,696.69,695.35,3.10524997]
[1736705986257,1.07579112,696.69,695.36,0.2876208]
[1736705986860,1.07579112,696.72,695.36,0.2876208]
[1736705987159,0.26396062,696.71,695.36,6.08421297]
[1736705987355,0.26396062,696.71,695.37,2.81762504]
[1736705987561,1.36284636,696.73,695.38,0.28761252]
[1736705987760,0.26396186,696.72,695.38,0.28761252]
[1736705988359,0.28705524,696.73,695.38,0.28761252]
[1736705988762,0.28705524,696.73,695.38,3.26657965]
[1736705988958,0.28705524,696.73,695.39,2.81762504]
[1736705989361,0.28705524,696.73,695.4,0.28760425]
[1736705990063,0.28705524,696.73,695.4,3.26657138]
[1736705990260,0.28705524,696.73,695.41,2.81762504]
[1736705990960,0.28705524,696.73,695.42,0.28759598]
[1736705991265,0.28705524,696.73,695.42,3.26656311]
[1736705991467,0.28705524,696.73,695.43,2.81762504]
[1736705991664,0.28705524,696.73,695.44,0.28758771]
[1736705992561,0.28705524,696.73,695.44,3.26655484]
[1736705992760,0.2639611,696.72,695.45,2.81762504]
[1736705993066,0.26396091,696.71,695.45,2.81762504]
[1736705993262,0.28705524,696.73,695.45,2.81762504]
[1736705993460,0.26396218,696.72,695.45,2.81762504]
[1736705993966,0.26396218,696.72,695.46,2.97896713]
[1736705994166,0.26396218,696.72,695.47,2.81762504]
[1736705995662,0.26396218,696.72,695.48,2.97896713]
[1736705995862,0.26396218,696.72,695.49,2.81762504]
[1736705996067,0.26396218,696.72,695.49,1.72731549]
[1736705996467,0.26396218,696.72,695.49,2.81701971]
[1736705996661,0.26396218,696.72,695.49,1.72731549]
[1736705997167,0.26396218,696.72,695.44,0.28758771]
[1736705997569,0.28705524,696.73,695.44,0.28758771]
[1736706006777,0.26399007,696.72,695.44,0.28758771]
[1736706007475,1.07579112,696.66,695.44,0.28758771]
[1736706007676,0.26399007,696.65,695.44,0.28758771]
[1736706008473,1.33978119,696.65,695.44,0.28758771]
[1736706008676,0.26399007,696.64,695.44,0.28758771]
[1736706009281,1.07579112,696.66,695.44,0.28758771]
[1736706009478,0.26399154,696.65,695.44,0.28758771]
[1736706010676,1.07579112,696.67,695.44,0.28758771]
[1736706010875,0.26399314,696.66,695.44,0.28758771]
[1736706011081,1.33978426,696.66,695.44,0.28758771]
[1736706011279,0.26399221,696.65,695.44,0.28758771]
[1736706012181,1.07579112,696.64,695.44,0.28758771]
[1736706013982,0.26399727,696.63,695.44,0.28758771]
[1736706014180,1.33978839,696.63,695.44,0.28758771]
[1736706014380,1.07579112,696.63,695.44,0.28758771]
[1736706015182,1.07579112,696.61,695.44,0.28758771]
[1736706017585,1.07579112,696.57,695.44,0.28758771]
[1736706018486,1.07579112,696.58,695.44,0.28758771]
[1736706020780,1.07579112,696.57,695.44,0.28758771]
[1736706021486,0.28705524,696.73,695.44,0.28758771]
[1736706021487,1.07579112,696.59,695.44,0.28758771]
[1736706023291,1.07579112,696.61,695.44,0.28758771]
[1736706023491,0.26403715,696.6,695.44,0.28758771]
[1736706025692,1.07579112,696.61,695.44,0.28758771]
[1736706025889,1.07579112,696.6,695.44,0.28758771]
[1736706026895,1.07579112,696.72,695.44,0.28758771]
[1736706027694,1.07579112,696.71,695.44,0.28758771]
[1736706027894,0.2870676,696.7,695.44,0.28758771]
[1736706035602,0.26398056,696.69,695.44,0.28758771]
[1736706035800,0.26398066,696.68,695.44,0.28758771]
[1736706036169,0.26398066,696.67,695.44,0.28758771]
[1736706036351,0.26398066,696.66,695.44,0.28758771]
[1736706036504,1.07579112,696.64,695.44,0.28758771]
[1736706037800,1.07579112,696.63,695.44,0.28758771]
[1736706038505,1.07579112,696.65,695.44,0.28758771]
[1736706038707,0.26398345,696.64,695.44,0.28758771]
[1736706039605,1.07579112,696.63,695.44,0.28758771]
[1736706040507,0.2870676,696.7,695.44,0.28758771]
[1736706040508,1.07579112,696.62,695.44,0.28758771]
[1736706040805,0.2639976,696.61,695.44,0.28758771]
[1736706041206,1.07579112,696.62,695.44,0.28758771]
[1736706041402,1.07579112,696.61,695.44,0.28758771]
[1736706041807,0.26400254,696.6,695.44,0.28758771]
[1736706042002,1.07579112,696.61,695.44,0.28758771]
[1736706042207,0.26400182,696.6,695.44,0.28758771]
[1736706042510,1.07579112,696.6,695.44,0.28758771]
[1736706045310,0.26400153,696.59,695.44,0.28758771]
[1736706045513,1.07579112,696.6,695.44,0.28758771]
[1736706045911,1.07579112,696.59,695.44,0.28758771]
[1736706047614,1.07579112,696.62,695.44,0.28758771]
[1736706048913,1.07579112,696.68,695.44,0.28758771]
[1736706049810,1.07579112,696.69,695.44,0.28758771]
[1736706051715,1.36285872,696.7,695.44,0.28758771]
[1736706054817,0.2870676,696.7,695.44,0.28758771]
[1736706056816,1.07579112,696.69,695.44,0.28758771]
[1736706057316,1.07579112,696.66,695.44,0.28758771]
[1736706057914,0.26399796,696.65,695.44,0.28758771]
[1736706058119,1.07579112,696.63,695.44,0.28758771]
[1736706058319,0.26399796,696.62,695.44,0.28758771]
[1736706058918,1.07579112,696.58,695.44,0.28758771]
[1736706062925,1.07579112,696.57,695.44,0.28758771]
[1736706063621,1.07579112,696.54,695.44,0.28758771]
[1736706065522,1.07579112,696.53,695.44,0.28758771]
[1736706066423,1.07579112,696.51,695.44,0.28758771]
[1736706068518,1.07579112,696.5,695.44,0.28758771]
[1736706071225,1.07579112,696.54,695.44,0.28758771]
[1736706073426,1.07579112,696.53,695.44,0.28758771]
[1736706073919,1.07579112,696.52,695.44,0.28758771]
[1736706075828,1.07579112,696.54,695.44,0.28758771]
[1736706079030,1.07579112,696.49,695.44,0.28758771]
[1736706081732,1.07579112,696.51,695.44,0.28758771]
[1736706086333,0.2870676,696.7,695.44,0.28758771]
[1736706086334,1.07579112,696.47,695.44,0.28758771]
[1736706089241,1.07579112,696.49,695.44,0.28758771]
[1736706092042,1.07579112,696.48,695.44,0.28758771]
[1736706092836,1.07579112,696.62,695.44,0.28758771]
[1736706093640,1.07579112,696.64,695.44,0.28758771]
[1736706094944,0.2870676,696.7,695.44,0.28758771]
[1736706094945,1.36285872,696.7,695.44,0.28758771]
[1736706096946,0.2870676,696.7,695.44,0.28758771]
[1736706097646,1.07579112,696.69,695.44,0.28758771]
[1736706099548,1.36285872,696.7,695.44,0.28758771]
[1736706100550,1.07579112,696.69,695.44,0.28758771]
[1736706101451,1.07579112,696.65,695.44,0.28758771]
[1736706102052,0.26399186,696.64,695.44,0.28758771]
[1736706102452,1.07579112,696.58,695.44,0.28758771]
[1736706103247,1.07579112,696.56,695.44,0.28758771]
[1736706104453,0.2870676,696.7,695.44,0.28758771]
[1736706104454,1.07579112,696.65,695.44,0.28758771]
[1736706105654,1.07579112,696.67,695.44,0.28758771]
[1736706112755,1.07579112,696.68,695.44,0.28758771]
[1736706113757,1.07579112,696.69,695.44,0.28758771]
[1736706113955,0.26398496,696.68,695.44,0.28758771]
[1736706114755,1.07579112,696.59,695.44,0.28758771]
[1736706115557,0.2870676,696.7,695.44,0.28758771]
[1736706115558,1.07579112,696.58,695.44,0.28758771]
[1736706116259,1.07579112,696.57,695.44,0.28758771]
[1736706116862,1.07579112,696.55,695.44,0.28758771]
[1736706118160,1.07579112,696.54,695.44,0.28758771]
[1736706123059,1.07579112,696.55,695.44,0.28758771]
[1736706124161,0.2870676,696.7,695.44,0.28758771]
[1736706124162,1.07579112,696.59,695.44,0.28758771]
[1736706124960,0.2870676,696.7,695.44,0.28758771]
[1736706124961,1.07579112,696.58,695.44,0.28758771]
[1736706126459,1.07579112,696.58,695.44,3.1091457]
[1736706126962,1.07579112,696.57,695.44,3.1091457]
[1736706127859,1.07579112,696.58,695.45,2.97896713]
[1736706128063,1.07579112,696.58,695.46,2.82155799]
[1736706128862,1.07579112,696.58,695.47,2.97896713]
[1736706129064,1.07579112,696.58,695.48,2.82155799]
[1736706130157,1.07579112,696.58,695.49,2.97896713]
[1736706130358,1.07579112,696.58,695.5,2.82155799]
[1736706130558,1.07579112,696.6,695.5,2.82155799]
[1736706131662,1.07579112,696.59,695.5,1.7325712]
[1736706132264,1.07579112,696.56,695.5,1.7325712]
[1736706132465,1.07579112,696.56,695.44,0.28758771]
[1736706133060,1.07579112,696.54,695.44,0.28758771]
[1736706133964,0.2870676,696.7,695.44,0.28758771]
[1736706133965,1.36285872,696.7,695.44,0.28758771]
[1736706135065,0.2870676,696.7,695.44,0.28758771]
[1736706151377,0.26397597,696.69,695.44,0.28758771]
[1736706152578,1.07579112,696.62,695.44,0.28758771]
[1736706155983,1.07579112,696.61,695.44,0.28758771]
[1736706156881,1.07579112,696.62,695.44,0.28758771]
[1736706157884,1.07579112,696.6,695.44,0.28758771]
[1736706160187,1.07579112,696.61,695.44,0.28758771]
[1736706161189,1.07579112,696.62,695.44,0.28758771]
[1736706161990,1.07579112,696.63,695.44,0.28758771]
[1736706164691,1.07579112,696.64,695.44,0.28758771]
[1736706168190,1.07579112,696.66,695.44,0.28758771]
[1736706169195,1.07579112,696.64,695.44,0.28758771]
[1736706170696,1.33979069,696.65,695.44,0.28758771]
[1736706171993,0.26399647,696.64,695.44,0.28758771]
[1736706172595,1.07579112,696.61,695.44,0.28758771]
[1736706173997,0.26399976,696.6,695.44,0.28758771]
[1736706175200,1.07579112,696.59,695.44,0.28758771]
[1736706177001,1.07579112,696.58,695.44,0.28758771]
[1736706179802,1.06389173,696.58,695.44,0.28758771]
[1736706181404,0.2870676,696.7,695.44,0.28758771]
[1736706181605,0.26400098,696.69,695.44,0.28758771]
[1736706183807,0.2870676,696.7,695.44,0.28758771]
[1736706184008,0.26400172,696.69,695.44,0.28758771]
[1736706184608,0.2870676,696.7,695.44,0.28758771]
[1736706184805,0.26400135,696.69,695.44,3.11010803]
[1736706185107,0.26400135,696.69,695.44,0.28758771]
[1736706186707,0.2640005,696.68,695.44,0.28758771]
[1736706186907,0.2640005,696.67,695.44,0.28758771]
[1736706187209,0.2870676,696.7,695.44,0.28758771]
[1736706187410,0.26400117,696.69,695.44,0.28758771]
[1736706189509,0.26400308,696.68,695.44,0.28758771]
[1736706189711,0.2870676,696.7,695.44,0.28758771]
[1736706199919,0.26402684,696.69,695.44,0.28758771]
[1736706200218,0.2870676,696.7,695.44,0.28758771]
[1736706200421,0.26402671,696.69,695.44,0.28758771]
[1736706201824,0.28707584,696.68,695.44,0.28758771]
[1736706202021,0.26402671,696.67,695.44,0.28758771]
[1736706203115,0.28707584,696.68,695.44,0.28758771]
[1736706203318,0.26403127,696.67,695.44,0.28758771]
[1736706204823,0.28708408,696.66,695.44,0.28758771]
[1736706205022,0.26403127,696.65,695.44,0.28758771]
[1736706211325,0.28708408,696.66,695.44,0.28758771]
[1736706211624,0.26402796,696.65,695.44,0.28758771]
[1736706212827,0.28708408,696.66,695.44,0.28758771]
[1736706238646,0.26401546,696.65,695.44,0.28758771]
[1736706243352,0.28708408,696.66,695.44,0.28758771]
[1736706243648,0.26401392,696.65,695.44,0.28758771]
[1736706246054,0.28708408,696.66,695.44,0.28758771]
[1736706246255,0.26401333,696.65,695.44,0.28758771]
[1736706247049,0.28708408,696.66,695.44,0.28758771]
[1736706268565,0.2639816,696.65,695.44,0.28758771]
[1736706270866,0.26399858,696.64,695.44,0.28758771]
[1736706271062,0.26399858,696.63,695.44,0.28758771]
[1736706271366,0.26399858,696.62,695.44,0.28758771]
[1736706271564,0.26399775,696.61,695.44,0.28758771]
[1736706271764,0.28708408,696.66,695.44,0.28758771]
[1736706271964,0.26399241,696.65,695.44,0.28758771]
[1736706273468,0.26399561,696.64,695.44,0.28758771]
[1736706273662,0.26399561,696.63,695.44,0.28758771]
[1736706273866,0.26399561,696.62,695.44,0.28758771]
[1736706274065,0.28708408,696.66,695.44,0.28758771]
[1736706274066,0.26399561,696.61,695.44,0.28758771]
[1736706274367,0.28708408,696.66,695.44,0.28758771]
[1736706274662,0.26399824,696.65,695.44,0.28758771]
[1736706276368,0.26399893,696.64,695.44,0.28758771]
[1736706276569,0.26399893,696.63,695.44,0.28758771]
[1736706276769,0.26399893,696.62,695.44,0.28758771]
[1736706276972,0.26399893,696.61,695.44,0.28758771]
[1736706277271,0.26399893,696.6,695.44,0.28758771]
[1736706277570,0.28708408,696.66,695.44,0.28758771]
[1736706277770,0.26401269,696.65,695.44,0.28758771]
[1736706281672,0.28708408,696.66,695.44,0.28758771]
[1736706281873,0.26402004,696.65,695.44,0.28758771]
[1736706282568,0.26403016,696.64,695.44,0.28758771]
[1736706282774,0.26403016,696.63,695.44,0.28758771]
[1736706283073,0.26403016,696.62,695.44,0.28758771]
[1736706283265,0.26403016,696.61,695.44,0.28758771]
[1736706283466,0.26403016,696.6,695.44,0.28758771]
[1736706283674,0.26403016,696.59,695.44,0.28758771]
[1736706283869,0.26403016,696.58,695.44,0.28758771]
[1736706284073,0.26403016,696.57,695.44,0.28758771]
[1736706284273,0.26403016,696.56,695.44,0.28758771]
[1736706284473,0.28708408,696.66,695.44,0.28758771]
[1736706284670,0.26402861,696.65,695.44,0.28758771]
[1736706284877,0.28709232,696.64,695.44,0.28758771]
[1736706285075,0.26402861,696.63,695.44,0.28758771]
[1736706285275,0.28710057,696.62,695.44,0.28758771]
[1736706285471,0.26402861,696.61,695.44,0.28758771]
[1736706286076,0.28710881,696.6,695.44,0.28758771]
[1736706286274,0.26402861,696.59,695.44,0.28758771]
[1736706286975,0.55114154,696.59,695.44,0.28758771]
[1736706287172,0.26402861,696.58,695.44,0.28758771]
[1736706287375,0.2640331,696.58,695.44,0.28758771]